Cogmind - Beta 16 @@@ ROGUE MODE // 2026.01.19 @ 21:09:05 Player: Lunishko Result: Destroyed by G-47 Trooper with Particle Gun Performance ------------- Evolutions (0) 0 Regions Visited (2) 400 Robots Destroyed (21) 105 Value Destroyed (535) 535 Prototype IDs (2) 40 Alien Tech Used (0) 0 Bonus (0) 0 TOTAL SCORE: 1080 Bonus ------- None Cogmind --------- Core Integrity 0/250 Matter 256/300 Energy 265/265 System Corruption 0% Temperature Cool (9) Movement Treading (160) Location -10/Mines Parts ------- > --- POWER (1) -------- Improved Ion Engine > --- PROPULSION (2) --- Light Treads > --- UTILITY (2) ------ Improved Heat Sink Small Storage Unit > --- WEAPON (2) ------- Assault Rifle Heavy Assault Rifle > --- INVENTORY (8) ---- Light Ion Engine Light Treads Transport Network Coupler EM Pulse Gun Light Assault Rifle Light Assault Rifle Light Assault Rifle Mining Laser Peak State ------------ > --- POWER ------------ Improved Ion Engine > --- PROPULSION ------- Light Treads Light Treads > --- UTILITY ---------- Improved Heat Sink Small Storage Unit > --- WEAPON ----------- Assault Rifle Heavy Assault Rifle > --- INVENTORY -------- Light Ion Engine Light Treads Transport Network Coupler EM Pulse Gun Light Assault Rifle Mining Laser [Rating: 11] Favorites ----------- Power Ion Engine Engine Ion Engine Propulsion Light Treads Treads Light Treads Utility Small Storage Unit Device Improved Heat Sink Storage Small Storage Unit Weapon Assault Rifle Energy Gun EM Pulse Gun Ballistic Gun Assault Rifle Build | -11 -10 -10 ------- Run | Yrd Mat Min Slots Evolved . | . . . Power . | . . . Propulsion . | . . . Utility . | . . . Weapon . | . . . Parts Attached 14 | 6 3 5 Power 2 | 1 . 1 Engine 2 | 1 . 1 Core . | . . . Reactor . | . . . Propulsion 5 | 2 1 2 Treads 5 | 2 1 2 Leg . | . . . Wheel . | . . . Hover . | . . . Flight . | . . . Utility 3 | 1 1 1 Device 1 | . . 1 Storage 2 | 1 1 . Processor . | . . . Hackware . | . . . Protection . | . . . Artifact . | . . . Weapon 4 | 2 1 1 Energy Gun 1 | 1 . . Energy Cannon . | . . . Ballistic Gun 3 | 1 1 1 Ballistic Cannon . | . . . Launcher . | . . . Special Weapon . | . . . Impact Weapon . | . . . Slashing Weapon . | . . . Piercing Weapon . | . . . Special Melee Weapon . | . . . Unidentified Prototypes . | . . . Parts Lost 5 | . 2 3 Power 1 | . . 1 Propulsion 3 | . 1 2 Utility . | . . . Weapon 1 | . 1 . Highest Loss Streak 2 | . 1 2 To Critical Strikes . | . . . Average Backups 4 | . 2 6 Power . | . . 1 Propulsion . | . . . Utility 1 | . . 1 Weapon 2 | . 1 3 Tool/Special . | . . . Unused Backups 8 | . 1 7 Power 1 | . . 1 Propulsion 1 | . 1 . Utility 1 | . . 1 Weapon 5 | . . 5 Tool/Special . | . . . Average Slot Usage (%) 88 | . 83 91 Engine 13 | . 14 13 Treads 25 | . 26 25 Device 5 | . . 9 Storage 14 | . 14 14 Energy Gun 4 | . 9 . Ballistic Gun 23 | . 18 28 Peak Build Rating 11 | 6 7 11 Average Rating 7 | 4 5 9 On Entrance 4 | . 6 6 Avg Prop Armor Cover (%) . | . . . Naked Turns . | . . . Heaviest Build 18 | 13 13 18 Greatest Support 40 | 40 40 40 Greatest Overweight (x) 1 | 1 . . Average Overweight (x) . | . . . Largest Inventory Capacity 25 | 8 25 8 Average Capacity 8 | 7 8 8 Most Carried 8 | 1 5 8 Average Carried 4 | . 2 6 Final Capacity 8 | 8 8 8 Final Carried 8 | 1 4 8 Class Distribution -------------------- 51% | Mutant 48% | Scavenger-Mutant Dominant Class ---------------- Mutant | -10/Materials Scavenger-Mutant | -10/Mines Resources | -11 -10 -10 ----------- Run | Yrd Mat Min Matter Collected 608 | 260 118 230 Remotely . | . . . Salvage Created 720 | . 388 332 Parts 44 | . 22 22 Haulers Intercepted 1 | . 1 . Recyclers Shooed 1 | . . 1 Parts Field Recycled . | . . . Retrieved Matter . | . . . Parts Self-Destructed . | . . . Prevented . | . . . Parts Restored . | . . . Kills | -11 -10 -10 ------- Run | Yrd Mat Min Combat Hostiles Destroyed 17 | . 6 11 Guns 16 | . 5 11 AOE 1 | . 1 . Classes Destroyed 7 | . 5 2 Tunneler 1 | . 1 . Hauler 1 | . 1 . Operator 1 | . 1 . Watcher 1 | . 1 . Swarmer 6 | . . 6 Grunt 10 | . 6 4 Sentry 1 | . . 1 Best Kill Streak 6 | . 2 6 Combat Bots Only 6 | . 2 6 Max Kills in Single Turn 1 | . 1 1 Gunslinging . | . . . Exploded 1 | . 1 . Melee . | . . . Uniques/NPCs Destroyed . | . . . Combat | -11 -10 -10 -------- Run | Yrd Mat Min Hostile Shots Fired 139 | . 47 92 Missed 37 | . 10 27 Hits 102 | . 37 65 Projectile 102 | . 37 65 Critical Strikes 1 | . . 1 Damage Taken 1200 | . 502 698 Core 253 | . 71 182 Absorbed by Shields . | . . . Core Remaining (%) 100 | 100 . . Volleys Fired 77 | . 38 39 Largest 2 | . 2 2 Hottest 60 | . 60 43 Shots Fired 154 | . 76 78 Gun 154 | . 76 78 Cannon . | . . . Launcher . | . . . Special . | . . . Kinetic 136 | . 58 78 Thermal . | . . . Explosive . | . . . Electromagnetic 18 | . 18 . Robot Hit Streak 14 | . 6 14 Robot Miss Streak 5 | . 4 5 Penetration Max . | . . . Secondary Targets 4 | . 2 2 Max Gunslinging Chain 1 | . 1 1 Shots Hit Robots 91 | . 42 49 Core Hits 38 | . 20 18 Critical Kills . | . . . Critical Parts Destroyed . | . . . Critical Strikes . | . . . Melee Attacks . | . . . Impact . | . . . Slashing . | . . . Piercing . | . . . Sneak Attacks . | . . . Combat Hostiles . | . . . Follow-up Attacks . | . . . Damage Inflicted 1198 | . 527 671 Guns 1167 | . 496 671 Cannons . | . . . Explosions 31 | . 31 . Melee . | . . . Ramming . | . . . Kinetic 975 | . 304 671 Thermal 31 | . 31 . Explosive . | . . . Electromagnetic 192 | . 192 . Impact . | . . . Slashing . | . . . Piercing . | . . . Highest Corruption . | . . . Average Corruption . | . . . Corruption Purged . | . . . Corruption Blocked . | . . . Overload Shots . | . . . Overflow Damage . | . . . Projectiles . | . . . Explosions . | . . . Melee . | . . . Knockbacks . | . . . Impact . | . . . Kinetic . | . . . Secondary . | . . . Self-Inflicted Damage 39 | . 39 . Shots 1 | . 1 . Rammed . | . . . Targets Rammed . | . . . Kicked . | . . . Crushed . | . . . Highest Temperature 138 | . 138 14 Average Temperature 48 | . 55 2 Received Heat Transfer 504 | . 261 243 Siege Activations . | . . . Martial Activations . | . . . Shielding Activations . | . . . Robots Disrupted . | . . . Combat Hostiles . | . . . Robots Corrupted . | . . . Combat Hostiles . | . . . Parts Fried 1 | . 1 . Impact Corruptions . | . . . Robots Melted . | . . . Combat Hostiles . | . . . Parts Melted . | . . . Heat Transferred 50 | . 50 . Parts Sabotaged . | . . . Parts Stolen . | . . . Parts Stripped . | . . . Power Chain Reactions 1 | . 1 . Alert | -11 -10 -10 ------- Run | Yrd Mat Min Maximum Alert Level . | . . . Low Security (%) 100 | 100 100 100 Level 1 . | . . . Level 2 . | . . . Level 3 . | . . . Level 4 . | . . . Level 5 . | . . . High Security . | . . . Max Security . | . . . Peak Influence 124 | . 57 124 Initial 10 | . . 10 Average 21 | . 20 24 Influence Increases 469 | . 204 265 Destroy 0b10 Robot/C 340 | . 120 220 Destroy 0b10 Robot/NC 20 | . 20 . Destroy Leader 64 | . 34 30 Successful Hack 13 | . 13 . Disable Machine 15 | . . 15 Destroy Structure 2 | . 2 . Lose Combat Pursuer 15 | . 15 . Influence Decreases 365 | . 175 190 Entered New Map 19 | . . 19 Time Decay 322 | . 158 164 Lost Part 24 | . 17 7 Squads Dispatched 1 | . 1 . Investigation 1 | . 1 . Extermination . | . . . Reinforcement . | . . . Assault . | . . . Garrison . | . . . Intercept . | . . . Searches Triggered . | . . . Construction Impeded . | . . . Haulers Reinforced . | . . . Active Scanning Responses . | . . . Cargo Convoy Interrupts . | . . . Stealth | -11 -10 -10 --------- Run | Yrd Mat Min Distress Signals 2 | . 2 . Communications Jammed . | . . . Distress Signals . | . . . Times Spotted 25 | . 12 13 Peak Tracking Total 4 | . 4 3 Tactical Retreats 1 | . 1 . Traps | -11 -10 -10 ------- Run | Yrd Mat Min Traps Triggered . | . . . Indirectly . | . . . Trap Hack Attempts . | . . . Triggered . | . . . Disarmed . | . . . Reprogrammed . | . . . Reused . | . . . Traps Extracted . | . . . Installed . | . . . Triggered . | . . . Machines | -11 -10 -10 ---------- Run | Yrd Mat Min Machines Disabled 1 | . . 1 Max in Single Turn 1 | . . 1 Machines Repaired . | . . . Machines Dismantled . | . . . Machines Sabotaged . | . . . Overloaded Fab Kills . | . . . Hacking | -11 -10 -10 --------- Run | Yrd Mat Min Machines Accessed 3 | . 3 . Terminals 3 | . 3 . Fabricators . | . . . Repair Stations . | . . . Recycling Units . | . . . Scanalyzers . | . . . Garrison Access . | . . . Total Hacks 9 | . 9 . Successful 6 | . 6 . Failed 3 | . 3 . Catastrophic . | . . . Database Lockouts . | . . . Manual 6 | . 6 . Terminals 9 | . 9 . Fabricators . | . . . Repair Stations . | . . . Recycling Units . | . . . Scanalyzers . | . . . Garrison Access . | . . . Terminal Hacks 3 | . 3 . Robot Analysis 1 | . 1 . Prototype ID Bank 1 | . 1 . Locate Traps 1 | . 1 . Fabricator Hacks . | . . . Repair Station Hacks . | . . . Recycling Unit Hacks . | . . . Scanalyzer . | . . . Garrison Access Hacks . | . . . Unauthorized Hacks 3 | . 3 . Terminals 3 | . 3 . Botnet 3 | . 3 . Fabricators . | . . . Repair Stations . | . . . Recycling Units . | . . . Scanalyzers . | . . . Garrison Access . | . . . Data Cores Recovered 1 | . 1 . Used . | . . . Hacking Detections 3 | . 3 . Full Trace Events 1 | . 1 . Feedback Events . | . . . Feedback Blocked . | . . . Robot Schematics Acquired . | . . . Robots Built . | . . . Authchips . | . . . Time . | . . . Total Robot Build Rating . | . . . Part Schematics Acquired . | . . . Parts Built . | . . . Authchips . | . . . Time . | . . . Total Part Build Rating . | . . . Part Studies Acquired . | . . . Parts Repaired . | . . . Time . | . . . Parts Recycled . | . . . Recycled Matter . | . . . Retrieved Matter . | . . . Retrieved Components . | . . . Parts Scanalyzed . | . . . Part Schematics Acquired . | . . . Parts Damaged . | . . . Bothacking | -11 -10 -10 ------------ Run | Yrd Mat Min Used RIF Installer . | . . . Robots Hacked . | . . . Non-combat . | . . . Combat . | . . . Robot Hacks Applied . | . . . Relay Couplers Released . | . . . Fabnet Peak Effective % . | . . . Robots Rewired . | . . . Allies Hacked . | . . . Hacks Repelled . | . . . Allies | -11 -10 -10 -------- Run | Yrd Mat Min Total Allies . | . . . Largest Group . | . . . Highest-Rated Group . | . . . Highest-Rated Ally . | . . . Total Orders . | . . . Ally Attacks . | . . . Total Damage . | . . . Kills . | . . . Allies Corrupted . | . . . Allies Melted . | . . . Intel | -11 -10 -10 ------- Run | Yrd Mat Min Active Infowar (turns) . | . . . Robot Analysis Total 1 | . 1 . Derelict Logs Recovered 1 | . . 1 Drone Launches . | . . . Drone Recoveries . | . . . Exploration | -11 -10 -10 ------------- Run | Yrd Mat Min Turns Passed 1245 | 81 504 660 Spaces Moved 620 | 46 240 334 Core 2 | 2 . . Treads 618 | 44 240 334 Legs . | . . . Wheels . | . . . Hover . | . . . Flight . | . . . Fastest Speed 50 | 50 160 160 Average Speed 159 | 156 160 160 Slowest Speed 160 | 160 160 160 Overloaded Moves . | . . . Propulsion Burnouts . | . . . Robots Hopped . | . . . Potential Cave-ins . | . . . Cave-ins Triggered . | . . . Exploration Rate (%) 36 | 3 43 64 Regions Visited 2 Branch Regions 1 Pre-discovered Areas . | . . . Known Exits Taken . | . . . Unknown Exits Taken 2 | 1 1 . Scrap Searched 2 | . . 2 Spaces Dug . | . . . Terrain Destroyed 2 | . 2 . Melee . | . . . Projectile . | . . . AOE 2 | . 2 . Terrain Rammed . | . . . Walls Destroyed . | . . . Machines Disabled . | . . . Actions | -11 -10 -10 --------- Run | Yrd Mat Min Total 728 | 52 293 383 Wait 1 | . 1 . Move 618 | 45 239 334 Hop . | . . . Pick Up 13 | 1 8 4 Fast Attach 8 | 6 . 2 Attach 5 | . 4 1 Detach . | . . . Swap 2 | . . 2 Drop 4 | . 3 1 Fire 77 | . 38 39 Melee . | . . . Ram . | . . . Kick . | . . . Crush . | . . . Escape Stasis . | . . . Rewire . | . . . Trap . | . . . Miscellaneous . | . . . Route ------- -11/Scrapyard -10/Materials (discovered 2 exits: [*Min] / [*Sub]) -10/Mines (discovered 2 exits: [*Mat x2]) History --------- Turn | Location | Event 12 | -11/Scrapyard | Discovered new exit (range 15) 82 | -11/Scrapyard | Entered Materials 270 | -10/Materials | Discovered new exit (range 5) 293 | -10/Materials | Discovered new exit (range 6) 310 | -10/Materials | Build established: Mutant 586 | -10/Materials | Entered Mines 593 | -10/Mines | Discovered new exit (range 8) 718 | -10/Mines | Discovered new exit (range 12) 947 | -10/Mines | Build established: Scavenger-Mutant 962 | -10/Mines | Learned Materials terminal intel 1114 | -10/Mines | Core integrity fell below 50% 1233 | -10/Mines | Core integrity fell below 20% 1246 | -10/Mines | Destroyed by G-47 Trooper with Particle Gun Last Messages --------------- 01093_ Found 50 Matter. 01098_ Seismic Survey Station disabled. 01112_ Lgt. Treads destroyed. 01113_ S-10 Pest destroyed. 01113_ Switching to secondary target: S-10 Pest. 01116_ S-10 Pest destroyed. 01116_ Switching to secondary target: S-10 Pest. 01125_ S-10 Pest destroyed. 01131_ Acquired 18 matter. 01133_ S-10 Pest destroyed. 01158_ Acquired Lgt. Assault Rifle. 01168_ Acquired 17 matter. 01179_ Searching scrap... 01179_ Found Lgt. Assault Rifle. 01179_ Found Sml. Storage Unit. 01179_ Found Mining Claw. 01179_ Found 66 Matter. 01180_ Acquired 66 matter. 01230_ Critical hit (Burn: +37). 01242_ G-34 Mercenary destroyed. Map ----- +----------------------------------------------------+ | ?## ##??# #???????????# | | ??### #### #???????????# ## | | ????###### #???????????# #? | | ?????????## #### #???????????# #? | | ??????????## #??# #???????????# ? | | ???????????## #??#!#???????????###? | | ????????????## ##??#!#??????????????? | | ?????????????## #???#%#??????????????? | | ??????????????# #??##!#??????????????? | | ??????????????# ####[ ##?????????????? | | ??????###?????# #?????????????? | | ?????## ###??# ##????????????? | | ?????# ##?#### =#????????????? | | ?????# ##???## %#????????????? | | ??????# ##???## =##???????????? | | ??????## ####?## ##??????????? | | ???????#### #??## ##?????????? | | ??????????## #???# ##????????? | | ???????????#### #???## =% ##### #? | | ??????????????# [######* #? | | ??????????????# ! = " # | | ??????????????# / * " ### # | | ????????????######### [%" " #????? | | ????????????# = #??????? | | ????????????# ########### #??????? | | ????????????#@#?????????## #??????? | | ???????????# = ?????????? #??????? | | ???????????# %g ???????? #??????? | | ???????????# #?????? ##??????? | | ???????????# T#????? ##???????? | | ???????????#### #####????? #????????? | | ??????????????? #?????????? #????????? | | ??????????????? #?????????? ?????????? | | ??????????????? ????????????????????? | | ????????????????#????????????????????? | | ?????????????????????????????????????? | | ?????????????????????????????????????? | | ?????????????????????????????????????? | | ?????????????????????????????????????? | | ?????????????????????????????????????? | | ?????????????????????????????????????? | | ?????????????????????????????????????? | | ?????????????????????????????????????? | | | | | | | | | | | | | | | +----------------------------------------------------+ Best States ------------- Heat Dissipation 39 Energy Generation 12 Energy Capacity 265 Matter Stores 300 Matter Capacity 300 Sight Range 16 Terrain Scan Density 10 Evasion (%) 40 Recoil Reduction 2 Item Schematics ----------------- None Robot Schematics ------------------ None Fabricated ------------ Nothing Repaired ---------- Nothing Studied --------- None Alien Tech Used ----------------- None Achievements -------------- None Challenges ------------ None Game ------ Seed FrostGravjetPower Manual? 0 Play Time 00:13:36 Cumulative 38.1 hours Start 2026.01.19 @ 17:54:04 End 2026.01.19 @ 21:09:05 Sessions 1 Manual Loads 0 Difficulty Rogue Special Mode None Game No. 41 Rogue 41 Adventurer 0 Explorer 0 Win Type - Total 2 Types 1/0/0/1/0/0/0/0/0/0 Lore% 29 Gallery% 27 Achievement% 28 Wizard Run 0 Options --------- Layout 0 ASCII 0 Keyboard 0 Movement Mouse Keybinds 0 Fullscreen 2 Font 36/Smallcaps Map View 76x50 Zoom Use 0% Tactical HUD 1 Map Filters NONE Filters NONE Steam 1 RUN: 314e0ff0-0dba-427c-920f-88b49d497b0f